Cogmind - Beta 14 @@@ ROGUE MODE // 2025.03.02 @ 17:35:57 Player: osman sinnoks Result: Destroyed by D-53 Grenadier with Mini Grenade Launcher Performance ------------- Evolutions (0) 0 Regions Visited (2) 400 Robots Destroyed (20) 100 Value Destroyed (336) 336 Prototype IDs (0) 0 Alien Tech Used (0) 0 Bonus (0) 0 TOTAL SCORE: 836 Bonus ------- None Cogmind --------- Core Integrity 0/250 Matter 300/300 Energy 100/100 System Corruption 0% Temperature Cool (0) Movement Core (50) Location -10/Mines Parts ------- > --- POWER (1) -------- (None) > --- PROPULSION (2) --- Aluminum Leg Aluminum Leg > --- UTILITY (2) ------ (None) > --- WEAPON (2) ------- (None) > --- INVENTORY (5) ---- Light Nuclear Core Improved Heat Sink Targeting Computer Targeting Computer Light Armor Plating Peak State ------------ > --- POWER ------------ Ion Engine > --- PROPULSION ------- Light Treads Light Treads > --- UTILITY ---------- Improved Heat Sink Small Storage Unit > --- WEAPON ----------- Particle Gun Light Assault Rifle > --- INVENTORY -------- Light Nuclear Core Aluminum Leg Aluminum Leg Signal Interpreter Seismic Detector Targeting Computer Targeting Computer Light Armor Plating [Rating: 11] Favorites ----------- Power Ion Engine Engine Ion Engine Propulsion Light Treads Treads Light Treads Leg Aluminum Leg Utility Small Storage Unit Device Seismic Detector Storage Small Storage Unit Weapon Light Assault Rifle Energy Gun Particle Gun Ballistic Gun Light Assault Rifle Build | -11 -10 -10 ------- Run | Yrd Mat Min Slots Evolved . | . . . Power . | . . . Propulsion . | . . . Utility . | . . . Weapon . | . . . Parts Attached 17 | 9 5 3 Power 2 | 1 1 . Engine 2 | 1 1 . Core . | . . . Reactor . | . . . Propulsion 6 | 4 . 2 Treads 2 | 2 . . Leg 4 | 2 . 2 Wheel . | . . . Hover . | . . . Flight . | . . . Utility 3 | 2 1 . Device 2 | 1 1 . Storage 1 | 1 . . Processor . | . . . Hackware . | . . . Protection . | . . . Artifact . | . . . Weapon 6 | 2 3 1 Energy Gun 2 | . 1 1 Energy Cannon . | . . . Ballistic Gun 4 | 2 2 . Ballistic Cannon . | . . . Launcher . | . . . Special Weapon . | . . . Impact Weapon . | . . . Slashing Weapon . | . . . Piercing Weapon . | . . . Special Melee Weapon . | . . . Unidentified Prototypes . | . . . Parts Lost 6 | . 2 4 Power 2 | . 1 1 Propulsion . | . . . Utility 1 | . . 1 Weapon 3 | . 1 2 Highest Loss Streak 4 | . 1 4 To Critical Strikes . | . . . Average Slot Usage (%) 98 | . 98 96 Engine 13 | . 13 13 Treads 24 | . 28 9 Leg 3 | . . 18 Device 14 | . 14 14 Storage 14 | . 14 14 Energy Gun 2 | . 1 8 Ballistic Gun 24 | . 25 17 Peak Build Rating 11 | 7 11 11 Average Rating 8 | 4 8 10 On Entrance 5 | . 7 10 Naked Turns . | . . . Heaviest Build 15 | 14 14 15 Greatest Support 40 | 40 40 40 Greatest Overweight (x) . | . . . Average Overweight (x) . | . . . Largest Inventory Capacity 8 | 8 8 8 Average Capacity 7 | 5 8 7 Most Carried 8 | 4 8 8 Average Carried 6 | 1 7 7 Final Capacity 8 | 8 8 5 Final Carried 8 | 4 8 5 Class Distribution -------------------- 93% | Mutant 6% | Scavenger-Mutant Dominant Class ---------------- Mutant | -10/Materials Mutant | -10/Mines Resources | -11 -10 -10 ----------- Run | Yrd Mat Min Matter Collected 585 | 338 178 69 Remotely . | . . . Salvage Created 524 | 111 302 111 Parts 45 | 7 32 6 Haulers Intercepted . | . . . Recyclers Shooed 1 | . 1 . Parts Field Recycled . | . . . Retrieved Matter . | . . . Parts Self-Destructed . | . . . Prevented . | . . . Kills | -11 -10 -10 ------- Run | Yrd Mat Min Combat Hostiles Destroyed 15 | . 11 4 Guns 15 | . 11 4 Classes Destroyed 7 | 3 3 1 Worker 1 | 1 . . Tunneler 3 | 2 1 . Recycler 1 | 1 . . Watcher 2 | . 2 . Swarmer 8 | . 8 . Grunt 5 | . 3 2 Assembled 2 | . . 2 Best Kill Streak 3 | 2 3 2 Combat Bots Only 2 | . 2 2 Max Kills in Single Turn 2 | 1 2 1 Gunslinging 1 | . 1 . Exploded . | . . . Melee . | . . . Uniques/NPCs Destroyed . | . . . Combat | -11 -10 -10 -------- Run | Yrd Mat Min Hostile Shots Fired 114 | . 88 26 Missed 35 | . 29 6 Damage Taken 1139 | . 631 508 Core 263 | . 133 130 Absorbed by Shields . | . . . Core Remaining (%) 100 | 100 . . Volleys Fired 94 | 12 68 14 Largest 2 | 2 2 2 Hottest 85 | 40 65 85 Shots Fired 168 | 24 119 25 Gun 168 | 24 119 25 Cannon . | . . . Launcher . | . . . Special . | . . . Kinetic 145 | 24 103 18 Thermal 23 | . 16 7 Explosive . | . . . Electromagnetic . | . . . Robot Hit Streak 9 | 6 9 7 Robot Miss Streak 4 | 2 4 3 Penetration Max . | . . . Secondary Targets 1 | . 1 . Max Gunslinging Chain 1 | . 1 . Shots Hit Robots 101 | 15 71 15 Core Hits 39 | 5 24 10 Critical Kills . | . . . Critical Parts Destroyed . | . . . Critical Strikes 1 | . 1 . Burn 1 | . 1 . Melee Attacks . | . . . Impact . | . . . Slashing . | . . . Piercing . | . . . Sneak Attacks . | . . . Combat Hostiles . | . . . Follow-up Attacks . | . . . Damage Inflicted 1133 | 165 802 166 Guns 1116 | 165 785 166 Cannons . | . . . Explosions . | . . . Melee . | . . . Ramming 17 | . 17 . Kinetic 936 | 165 664 107 Thermal 180 | . 121 59 Explosive . | . . . Electromagnetic . | . . . Impact . | . . . Slashing . | . . . Piercing . | . . . Highest Corruption . | . . . Average Corruption . | . . . Corruption Purged . | . . . Corruption Blocked . | . . . Overload Shots . | . . . Overflow Damage . | . . . Projectiles . | . . . Explosions . | . . . Melee . | . . . Knockbacks 1 | . 1 . Impact 1 | . 1 . Kinetic . | . . . Secondary . | . . . Self-Inflicted Damage . | . . . Shots . | . . . Rammed 2 | . 2 . Targets Rammed 2 | . 2 . Kicked . | . . . Crushed . | . . . Highest Temperature 336 | . 336 32 Average Temperature 97 | . 106 16 Received Heat Transfer 291 | . 219 72 Siege Activations . | . . . Robots Corrupted . | . . . Combat Hostiles . | . . . Parts Fried . | . . . Impact Corruptions . | . . . Robots Melted . | . . . Combat Hostiles . | . . . Parts Melted . | . . . Heat Transferred 518 | . 370 148 Parts Sabotaged . | . . . Parts Stolen . | . . . Parts Stripped . | . . . Power Chain Reactions . | . . . Alert | -11 -10 -10 ------- Run | Yrd Mat Min Peak Influence 191 | 20 191 84 Initial 34 | . 13 34 Average 73 | 9 84 67 Maximum Alert Level . | . . . Low Security (%) 100 | 100 100 100 Level 1 . | . . . Level 2 . | . . . Level 3 . | . . . Level 4 . | . . . Level 5 . | . . . High Security . | . . . Max Security . | . . . Squads Dispatched 2 | . 2 . Investigation . | . . . Extermination . | . . . Reinforcement 2 | . 2 . Assault . | . . . Garrison . | . . . Intercept . | . . . Searches Triggered . | . . . Construction Impeded . | . . . Haulers Reinforced . | . . . Active Scanning Responses . | . . . Cargo Convoy Interrupts . | . . . Stealth | -11 -10 -10 --------- Run | Yrd Mat Min Distress Signals 1 | . 1 . Communications Jammed . | . . . Distress Signals . | . . . Times Spotted 30 | . 20 10 Peak Tracking Total 6 | . 4 6 Tactical Retreats 1 | . 1 . Traps | -11 -10 -10 ------- Run | Yrd Mat Min Traps Triggered . | . . . Indirectly . | . . . Trap Hack Attempts . | . . . Triggered . | . . . Disarmed . | . . . Reprogrammed . | . . . Reused . | . . . Traps Extracted . | . . . Installed . | . . . Triggered . | . . . Machines | -11 -10 -10 ---------- Run | Yrd Mat Min Machines Disabled . | . . . Max in Single Turn . | . . . Machines Repaired . | . . . Machines Dismantled . | . . . Machines Sabotaged . | . . . Overloaded Fab Kills . | . . . Hacking | -11 -10 -10 --------- Run | Yrd Mat Min Machines Accessed 6 | . 6 . Terminals 5 | . 5 . Fabricators . | . . . Repair Stations . | . . . Recycling Units 1 | . 1 . Scanalyzers . | . . . Garrison Access . | . . . Total Hacks 18 | . 18 . Successful 8 | . 8 . Failed 10 | . 10 . Catastrophic . | . . . Database Lockouts . | . . . Manual 8 | . 8 . Terminals 17 | . 17 . Fabricators . | . . . Repair Stations . | . . . Recycling Units 1 | . 1 . Scanalyzers . | . . . Garrison Access . | . . . Terminal Hacks 4 | . 4 . Alert Level 1 | . 1 . Locate Traps 1 | . 1 . Hauler Manifests 1 | . 1 . Zone Layout 1 | . 1 . Fabricator Hacks . | . . . Repair Station Hacks . | . . . Recycling Unit Hacks 1 | . 1 . Report Inventory 1 | . 1 . Scanalyzer . | . . . Garrison Access Hacks . | . . . Unauthorized Hacks 3 | . 3 . Terminals 3 | . 3 . Botnet 3 | . 3 . Fabricators . | . . . Repair Stations . | . . . Recycling Units . | . . . Scanalyzers . | . . . Garrison Access . | . . . Data Cores Recovered . | . . . Used . | . . . Hacking Detections 5 | . 5 . Full Trace Events . | . . . Feedback Events . | . . . Feedback Blocked . | . . . Robot Schematics Acquired . | . . . Robots Built . | . . . Authchips . | . . . Time . | . . . Total Robot Build Rating . | . . . Part Schematics Acquired . | . . . Parts Built . | . . . Authchips . | . . . Time . | . . . Total Part Build Rating . | . . . Parts Repaired . | . . . Time . | . . . Parts Recycled . | . . . Recycled Matter . | . . . Retrieved Matter . | . . . Retrieved Components . | . . . Parts Scanalyzed . | . . . Part Schematics Acquired . | . . . Parts Damaged . | . . . Bothacking | -11 -10 -10 ------------ Run | Yrd Mat Min Used RIF Installer . | . . . Robots Hacked . | . . . Non-combat . | . . . Combat . | . . . Robot Hacks Applied . | . . . Relay Couplers Released . | . . . Fabnet Peak Effective % . | . . . Robots Rewired . | . . . Allies Hacked . | . . . Hacks Repelled . | . . . Allies | -11 -10 -10 -------- Run | Yrd Mat Min Total Allies . | . . . Largest Group . | . . . Highest-Rated Group . | . . . Highest-Rated Ally . | . . . Total Orders . | . . . Ally Attacks . | . . . Total Damage . | . . . Kills . | . . . Allies Corrupted . | . . . Allies Melted . | . . . Intel | -11 -10 -10 ------- Run | Yrd Mat Min Robot Analysis Total . | . . . Derelict Logs Recovered . | . . . Drone Launches . | . . . Drone Recoveries . | . . . Exploration | -11 -10 -10 ------------- Run | Yrd Mat Min Turns Passed 1453 | 152 1092 209 Spaces Moved 732 | 69 545 118 Core 11 | 5 . 6 Treads 617 | 48 545 24 Legs 104 | 16 . 88 Wheels . | . . . Hover . | . . . Flight . | . . . Fastest Speed 50 | 50 160 50 Average Speed 152 | 142 160 124 Slowest Speed 160 | 160 160 160 Overloaded Moves . | . . . Propulsion Burnouts . | . . . Robots Hopped . | . . . Cave-ins Triggered . | . . . Exploration Rate (%) 38 | 4 83 27 Regions Visited 2 Branch Regions 1 Pre-discovered Areas . | . . . Known Exits Taken . | . . . Unknown Exits Taken 2 | 1 1 . Scrap Searched 1 | . . 1 Spaces Dug . | . . . Terrain Destroyed . | . . . Melee . | . . . Projectile . | . . . AOE . | . . . Terrain Rammed . | . . . Walls Destroyed . | . . . Machines Disabled . | . . . Actions | -11 -10 -10 --------- Run | Yrd Mat Min Total 923 | 100 662 161 Wait 43 | . 30 13 Move 730 | 68 544 118 Hop . | . . . Pick Up 23 | 11 8 4 Fast Attach 4 | . 3 1 Attach 8 | 7 1 . Detach . | . . . Swap 5 | 2 1 2 Drop 14 | . 5 9 Fire 94 | 12 68 14 Melee . | . . . Ram . | . . . Kick . | . . . Crush 2 | . 2 . Escape Stasis . | . . . Rewire . | . . . Trap . | . . . Miscellaneous . | . . . Route ------- -11/Scrapyard -10/Materials (discovered 4 exits: [*Mat x3] / [*Min]) -10/Mines History --------- Turn | Location | Event 4 | -11/Scrapyard | Discovered new exit (range 16) 153 | -11/Scrapyard | Entered Materials 307 | -10/Materials | Build established: Mutant 334 | -10/Materials | Discovered new exit (range 16) 846 | -10/Materials | Core integrity fell below 50% 888 | -10/Materials | Discovered new exit (range 12) 1035 | -10/Materials | Discovered new exit (range 8) 1121 | -10/Materials | Discovered new exit (range 8) 1245 | -10/Materials | Entered Mines 1251 | -10/Mines | Met a Derelict bent on vengeance 1406 | -10/Mines | Assembled infested the area 1453 | -10/Mines | Core integrity fell below 20% 1454 | -10/Mines | Destroyed by D-53 Grenadier with Mini Grenade Launcher Last Messages --------------- 01398_ Found Hover Unit. 01398_ Found 56 Matter. 01406_ ALERT: Infestation in the mines, dispatching Demolisher response squad. 01424_ as-46578 destroyed. 01426_ Lgt. Assault Rifle destroyed. 01431_ as-40071 destroyed. 01448_ C-30 ARC bursts open, deploying its payload. 01448_ D-53 Grenadier unfolds itself. 01448_ Particle Gun destroyed. 01448_ as-58700 destroyed. 01448_ Ion Engine destroyed. 01448_ as-18674 destroyed. 01449_ Dropped Aluminum Leg. 01449_ Dropped Seismic Detector. 01450_ Imp. Heat Sink destroyed. 01450_ as-94663 destroyed. 01450_ Dropped Signal Interpreter. 01450_ Dropped Sml. Storage Unit. Map ----- +----------------------------------------------------+ | ?????????????????????????????????????????????????? | | ?????????????????????????????????????????????????? | | ?????????????????????????????????????????????????? | | ?????????????????????????????????????????????????? | | ?????????????????????????????????????????????????? | | ?????????????????????????????????????????????????? | | ?????????????????????????????????????????????????? | | ?????????????????????????????????????????????????? | | ?????????????????????????????????????????????????? | | ?????????????????#???????????????????????????????? | | ????????????????? ???????????????????????????????? | | ????????????????? ##?????????????????????????????? | | ????????????????? #?????????????????????????????? | | ????????????????? #?########????????????????????? | | ?????????????????# ### ##???????????????????? | | ?????????????????# ## #???????????????????? | | ?????????????????# ## #???????????????????? | | ?????????????????# ##??????????????????? | | ?????????????????# a! #??????????????????? | | ?????????????????##### = #??????????????????? | | ????????????????????? #??????????????????? | | ?????????????????????# #??????????????????? | | ?????????????????????# #??????????????????? | | ?????????????????????## #??####????????????? | | ??????????????????????## ####?## ##???????????? | | ???????????????????????##@d#???## #####???????? | | ????????????????????????#d%#???# ##??????? | | ????????????????????????# ##### # ##??? | | ????????????????????????# ! ##?? | | ????????????????????????# =% #?? | | ????????????????????????######## #? | | ???????????????????????????????## ### # | | ????????????????????????????????## ##??# # | | ?????????????????????????######### ##### # | | ?????????????????????????# # | | ?????????????????????????# ############# # | | ?????????????????????????# #????????????? ## | | ?????????????????????????# #?????????????## #? | | ??????????????????????#### #???????????????# #? | | ??????????????????????# #???????????????? ##? | | ??????????????????????# ####????????????????? #?? | | ??????????????????????# #??#####?###?????????????? | | ??????????????????????# #?## ## ##????????????? | | ??????????????????????# ### #????????????? | | ???????? ######## ## #????????????? | | ???????? #????????????? | | ????????????# #?????????????? | | ????????????############# ##?????????????? | | ????????????????????????# # ###??????????????? | | ????????????????????????# ## ###??####??????????? | +----------------------------------------------------+ Best States ------------- Heat Dissipation 39 Energy Generation 10 Energy Capacity 250 Matter Stores 300 Matter Capacity 300 Sight Range 16 Terrain Scan Density 10 Evasion (%) 55 Recoil Reduction 2 Item Schematics ----------------- None Robot Schematics ------------------ None Fabricated ------------ Nothing Alien Tech Used ----------------- None Achievements -------------- None Challenges ------------ None Game ------ Seed ReactionImprinterAutobeam Manual? 0 Play Time 00:16:17 Cumulative 26.2 hours Start 2025.03.02 @ 17:16:08 End 2025.03.02 @ 17:35:57 Sessions 1 Manual Loads 0 Difficulty Rogue Special Mode None Game No. 55 Rogue 55 Adventurer 0 Explorer 0 Win Type - Total 0 Types 0/0/0/0/0/0/0/0/0 Lore% 16 Gallery% 30 Achievement% 24 Wizard Run 0 Options --------- Layout 2 ASCII 0 Keyboard 0 Movement Mouse Keybinds 0 Fullscreen 1 Font 24/Smallcaps Map View 50x49 Zoom Use 0% Tactical HUD 1 Map Filters NONE Filters NONE Steam 1 RUN: b2a14a47-027d-471c-a4d8-47c390c1ea8b